[Event "Titled Tuesday Blitz January 17 Early 2023"]
[White "Postny, Evgeny"]
[Black "Salman, Pavel"]
[WhiteFideId "2804344"]
[BlackFideId "24153753"]
[WhiteElo "2549"]
[BlackElo "2287"]
[Result "1-0"]
[Round "05"]
[TimeControl "180+2"]
[Date "2023.01.17"]
[WhiteClock "0:01:27"]
[BlackClock "0:01:26"]

1. e4 {[%clk 0:02:53]}  c5 {[%clk 0:03:00]} 2. Nf3 {[%clk 0:02:52]}  e6 {[%clk 0:03:00]} 3. d4 {[%clk 0:02:52]}  cxd4 {[%clk 0:03:01]} 4. Nxd4 {[%clk 0:02:53]}  a6 {[%clk 0:03:01]} 5. Bd3 {[%clk 0:02:52]}  Bc5 {[%clk 0:03:01]} 6. Nb3 {[%clk 0:02:53]}  Ba7 {[%clk 0:03:02]} 7. c4 {[%clk 0:02:52]}  d6 {[%clk 0:03:00]} 8. O-O {[%clk 0:02:52]}  Ne7 {[%clk 0:03:01]} 9. Nc3 {[%clk 0:02:52]}  O-O {[%clk 0:03:00]} 10. Qe2 {[%clk 0:02:51]}  e5 {[%clk 0:03:01]} 11. Be3 {[%clk 0:02:51]}  Nbc6 {[%clk 0:03:01]} 12. Bxa7 {[%clk 0:02:50]}  Rxa7 {[%clk 0:03:02]} 13. Rfd1 {[%clk 0:02:46]}  Be6 {[%clk 0:03:02]} 14. Qe3 {[%clk 0:02:40]}  Qb8 {[%clk 0:03:02]} 15. Rac1 {[%clk 0:02:39]}  Rd8 {[%clk 0:02:37]} 16. Bf1 {[%clk 0:02:38]}  b5 {[%clk 0:02:32]} 17. cxb5 {[%clk 0:02:33]}  axb5 {[%clk 0:02:33]} 18. Bxb5 {[%clk 0:02:22]}  Bxb3 {[%clk 0:02:30]} 19. axb3 {[%clk 0:02:23]}  Nd4 {[%clk 0:02:30]} 20. Bc4 {[%clk 0:02:21]}  Nxb3 {[%clk 0:02:11]} 21. Bxb3 {[%clk 0:02:19]}  Qxb3 {[%clk 0:02:11]} 22. Qxa7 {[%clk 0:02:18]}  Ng6 {[%clk 0:01:48]} 23. Qa2 {[%clk 0:01:59]}  Qb7 {[%clk 0:01:44]} 24. Nd5 {[%clk 0:01:58]}  Ra8 {[%clk 0:01:43]} 25. Qc4 {[%clk 0:01:55]}  h5 {[%clk 0:01:42]} 26. Qc6 {[%clk 0:01:48]}  Qa7 {[%clk 0:01:41]} 27. g3 {[%clk 0:01:43]}  h4 {[%clk 0:01:41]} 28. Ra1 {[%clk 0:01:41]}  Qxa1 {[%clk 0:01:39]} 29. Rxa1 {[%clk 0:01:40]}  Rxa1+ {[%clk 0:01:40]} 30. Kg2 {[%clk 0:01:40]}  Rb1 {[%clk 0:01:33]} 31. Qe8+ {[%clk 0:01:39]}  Kh7 {[%clk 0:01:33]} 32. Qxf7 {[%clk 0:01:38]}  Rxb2 {[%clk 0:01:33]} 33. Nf6+ {[%clk 0:01:37]}  Kh6 {[%clk 0:01:32]} 34. Ng4+ {[%clk 0:01:29]}  Kh7 {[%clk 0:01:26]} 35. Qf5 {[%clk 0:01:27]} 1-0


[Site "https://www.chess.com"]

[Event "Titled Tuesday Blitz January 17 Early 2023"]
[White "Mammadzada, Gunay"]
[Black "Rozman, Levy"]
[WhiteFideId "13403729"]
[BlackFideId "2039877"]
[WhiteElo "2449"]
[BlackElo "2322"]
[Result "1-0"]
[Round "05"]
[TimeControl "180+2"]
[Date "2023.01.17"]
[WhiteClock "0:00:09"]
[BlackClock "0:00:10"]

1. e4 {[%clk 0:02:59]}  e6 {[%clk 0:02:58]} 2. d4 {[%clk 0:02:59]}  d5 {[%clk 0:02:58]} 3. Nd2 {[%clk 0:02:59]}  dxe4 {[%clk 0:02:59]} 4. Nxe4 {[%clk 0:02:59]}  Nf6 {[%clk 0:03:00]} 5. Nxf6+ {[%clk 0:02:58]}  gxf6 {[%clk 0:03:01]} 6. g3 {[%clk 0:02:57]}  Nc6 {[%clk 0:03:01]} 7. Ne2 {[%clk 0:02:55]}  Qd5 {[%clk 0:02:58]} 8. Rg1 {[%clk 0:02:53]}  Qh5 {[%clk 0:02:49]} 9. h3 {[%clk 0:02:43]}  Bd7 {[%clk 0:02:37]} 10. Be3 {[%clk 0:02:41]}  O-O-O {[%clk 0:02:36]} 11. Nf4 {[%clk 0:02:21]}  Qa5+ {[%clk 0:02:35]} 12. Qd2 {[%clk 0:02:15]}  Bb4 {[%clk 0:02:33]} 13. c3 {[%clk 0:02:15]}  Be7 {[%clk 0:02:32]} 14. Bc4 {[%clk 0:02:05]}  Qa4 {[%clk 0:02:10]} 15. Bb3 {[%clk 0:01:56]}  Qb5 {[%clk 0:02:05]} 16. O-O-O {[%clk 0:01:52]}  Na5 {[%clk 0:02:04]} 17. Qc2 {[%clk 0:01:34]}  Nxb3+ {[%clk 0:02:04]} 18. axb3 {[%clk 0:01:34]}  Qa5 {[%clk 0:01:53]} 19. Kb1 {[%clk 0:01:33]}  Bc6 {[%clk 0:01:46]} 20. g4 {[%clk 0:01:16]}  Rhg8 {[%clk 0:01:38]} 21. Qxh7 {[%clk 0:01:14]}  f5 {[%clk 0:01:34]} 22. d5 {[%clk 0:01:11]}  exd5 {[%clk 0:01:18]} 23. Qxf5+ {[%clk 0:01:05]}  Kb8 {[%clk 0:01:18]} 24. b4 {[%clk 0:00:58]}  Qb5 {[%clk 0:00:55]} 25. Qxf7 {[%clk 0:00:57]}  Bd6 {[%clk 0:00:51]} 26. Ne6 {[%clk 0:00:40]}  Rde8 {[%clk 0:00:43]} 27. Nd4 {[%clk 0:00:40]}  Qa4 {[%clk 0:00:40]} 28. Nxc6+ {[%clk 0:00:40]}  bxc6 {[%clk 0:00:41]} 29. g5 {[%clk 0:00:32]}  a5 {[%clk 0:00:33]} 30. bxa5 {[%clk 0:00:23]}  Qe4+ {[%clk 0:00:31]} 31. Kc1 {[%clk 0:00:21]}  Rgf8 {[%clk 0:00:28]} 32. Qh5 {[%clk 0:00:16]}  Rxf2 {[%clk 0:00:19]} 33. Bxf2 {[%clk 0:00:10]}  Bf4+ {[%clk 0:00:19]} 34. Rd2 {[%clk 0:00:10]}  Qd3 {[%clk 0:00:10]} 35. Qxe8+ {[%clk 0:00:09]} 1-0


[Site "https://www.chess.com"]

[Event "Titled Tuesday Blitz January 17 Early 2023"]
[White "Ansh M Shah"]
[Black "Gurvich, Vitaly"]
[WhiteFideId "25033379"]
[BlackFideId "24164852"]
[WhiteElo "2171"]
[BlackElo "2278"]
[Result "0-1"]
[Round "05"]
[TimeControl "180+2"]
[Date "2023.01.17"]
[WhiteClock "0:00:06"]
[BlackClock "0:01:34"]

1. d4 {[%clk 0:02:56]}  g6 {[%clk 0:02:58]} 2. c4 {[%clk 0:02:55]}  Bg7 {[%clk 0:02:58]} 3. h4 {[%clk 0:02:56]}  Nf6 {[%clk 0:02:57]} 4. Nc3 {[%clk 0:02:56]}  c5 {[%clk 0:02:56]} 5. d5 {[%clk 0:02:56]}  O-O {[%clk 0:02:56]} 6. e4 {[%clk 0:02:56]}  d6 {[%clk 0:02:56]} 7. Be2 {[%clk 0:02:57]}  e6 {[%clk 0:02:56]} 8. h5 {[%clk 0:02:57]}  exd5 {[%clk 0:02:57]} 9. exd5 {[%clk 0:02:58]}  Re8 {[%clk 0:02:56]} 10. h6 {[%clk 0:02:57]}  Bh8 {[%clk 0:02:56]} 11. Kf1 {[%clk 0:02:58]}  Bf5 {[%clk 0:02:54]} 12. Bf4 {[%clk 0:02:54]}  Na6 {[%clk 0:02:53]} 13. a3 {[%clk 0:02:50]}  Ne4 {[%clk 0:02:49]} 14. Nxe4 {[%clk 0:02:47]}  Bxe4 {[%clk 0:02:50]} 15. Bd3 {[%clk 0:02:38]}  Qf6 {[%clk 0:02:44]} 16. Bc1 {[%clk 0:02:21]}  Qf5 {[%clk 0:02:36]} 17. Be2 {[%clk 0:01:49]}  b5 {[%clk 0:02:29]} 18. cxb5 {[%clk 0:01:45]}  Nc7 {[%clk 0:02:28]} 19. Nf3 {[%clk 0:01:40]}  Nxd5 {[%clk 0:02:27]} 20. Bc4 {[%clk 0:01:31]}  Nb6 {[%clk 0:02:25]} 21. Be2 {[%clk 0:01:25]}  d5 {[%clk 0:02:24]} 22. Be3 {[%clk 0:01:20]}  d4 {[%clk 0:02:23]} 23. Nh4 {[%clk 0:01:02]}  Qd5 {[%clk 0:02:19]} 24. Bf4 {[%clk 0:00:52]}  d3 {[%clk 0:02:18]} 25. Bf3 {[%clk 0:00:52]}  Bxb2 {[%clk 0:02:18]} 26. Rb1 {[%clk 0:00:50]}  Bf6 {[%clk 0:02:17]} 27. Qd2 {[%clk 0:00:46]}  c4 {[%clk 0:02:14]} 28. Bg5 {[%clk 0:00:32]}  Bh8 {[%clk 0:02:07]} 29. Bxe4 {[%clk 0:00:24]}  Rxe4 {[%clk 0:02:08]} 30. Rh3 {[%clk 0:00:24]}  Rae8 {[%clk 0:02:06]} 31. Rd1 {[%clk 0:00:17]}  c3 {[%clk 0:01:51]} 32. Qxd3 {[%clk 0:00:16]}  Rd4 {[%clk 0:01:51]} 33. Qxd4 {[%clk 0:00:08]}  Bxd4 {[%clk 0:01:52]} 34. Be3 {[%clk 0:00:06]}  Qxb5+ {[%clk 0:01:51]} 35. Kg1 {[%clk 0:00:06]}  Bf6 {[%clk 0:01:46]} 36. Nf3 {[%clk 0:00:05]}  c2 {[%clk 0:01:43]} 37. Rc1 {[%clk 0:00:05]}  Rxe3 {[%clk 0:01:43]} 38. fxe3 {[%clk 0:00:05]}  Qb1 {[%clk 0:01:43]} 39. Rxb1 {[%clk 0:00:02]}  cxb1=Q+ {[%clk 0:01:44]} 40. Kh2 {[%clk 0:00:03]}  Nc4 {[%clk 0:01:42]} 41. Nd4 {[%clk 0:00:01]}  Be5+ {[%clk 0:01:38]} 42. g3 {[%clk 0:00:01]}  Bxd4 {[%clk 0:01:37]} 43. exd4 {[%clk 0:00:01]}  f5 {[%clk 0:01:37]} 44. Rh4 {[%clk 0:00:02]}  Qc2+ {[%clk 0:01:36]} 45. Kh3 {[%clk 0:00:02]}  Ne3 {[%clk 0:01:36]} 46. Rf4 {[%clk 0:00:03]}  Qg2+ {[%clk 0:01:35]} 47. Kh4 {[%clk 0:00:04]}  Kf7 {[%clk 0:01:34]} 48. Kg5 {[%clk 0:00:05]}  Qxg3+ {[%clk 0:01:34]} 49. Rg4 {[%clk 0:00:06]}  Qxg4# {[%clk 0:01:34]} 0-1


[Site "https://www.chess.com"]

[Event "Titled Tuesday Blitz January 17 Early 2023"]
[White "Costachi, Mihnea"]
[Black "Md, Imran"]
[WhiteFideId "1217518"]
[BlackFideId "25748580"]
[WhiteElo "2476"]
[BlackElo "2284"]
[Result "1-0"]
[Round "05"]
[TimeControl "180+2"]
[Date "2023.01.17"]
[WhiteClock "0:00:35"]
[BlackClock "0:00:13"]

1. Nc3 {[%clk 0:03:00]}  Nf6 {[%clk 0:02:57]} 2. e4 {[%clk 0:02:59]}  d6 {[%clk 0:02:55]} 3. d4 {[%clk 0:02:58]}  e5 {[%clk 0:02:53]} 4. Nf3 {[%clk 0:02:58]}  exd4 {[%clk 0:02:51]} 5. Nxd4 {[%clk 0:02:55]}  Be7 {[%clk 0:02:50]} 6. Bc4 {[%clk 0:02:54]}  O-O {[%clk 0:02:48]} 7. O-O {[%clk 0:02:55]}  Nxe4 {[%clk 0:02:44]} 8. Nxe4 {[%clk 0:02:53]}  d5 {[%clk 0:02:43]} 9. Bd3 {[%clk 0:02:51]}  dxe4 {[%clk 0:02:41]} 10. Bxe4 {[%clk 0:02:52]}  Bf6 {[%clk 0:02:39]} 11. Be3 {[%clk 0:02:50]}  Re8 {[%clk 0:02:39]} 12. Bf3 {[%clk 0:02:38]}  c6 {[%clk 0:02:28]} 13. c3 {[%clk 0:02:38]}  Nd7 {[%clk 0:02:26]} 14. h3 {[%clk 0:02:32]}  Ne5 {[%clk 0:02:24]} 15. Be2 {[%clk 0:02:33]}  Qc7 {[%clk 0:02:22]} 16. Qd2 {[%clk 0:02:30]}  Be6 {[%clk 0:02:09]} 17. Nxe6 {[%clk 0:02:30]}  Rxe6 {[%clk 0:02:08]} 18. Rad1 {[%clk 0:02:29]}  Re7 {[%clk 0:02:06]} 19. Bc5 {[%clk 0:02:19]}  Ree8 {[%clk 0:02:01]} 20. Qf4 {[%clk 0:02:11]}  Rad8 {[%clk 0:01:47]} 21. Rxd8 {[%clk 0:02:06]}  Rxd8 {[%clk 0:01:46]} 22. Rd1 {[%clk 0:02:06]}  Rxd1+ {[%clk 0:01:36]} 23. Bxd1 {[%clk 0:02:07]}  b6 {[%clk 0:01:36]} 24. Be3 {[%clk 0:02:03]}  Qd8 {[%clk 0:01:31]} 25. Bb3 {[%clk 0:02:00]}  c5 {[%clk 0:01:25]} 26. Qe4 {[%clk 0:01:57]}  g6 {[%clk 0:01:16]} 27. Bd5 {[%clk 0:01:53]}  Kg7 {[%clk 0:01:15]} 28. c4 {[%clk 0:01:50]}  Nd7 {[%clk 0:01:08]} 29. b3 {[%clk 0:01:48]}  Qe7 {[%clk 0:01:07]} 30. Qf4 {[%clk 0:01:46]}  Qe5 {[%clk 0:01:02]} 31. Qxe5 {[%clk 0:01:38]}  Nxe5 {[%clk 0:00:58]} 32. Be4 {[%clk 0:01:38]}  Nd7 {[%clk 0:00:56]} 33. f4 {[%clk 0:01:38]}  Bd4 {[%clk 0:00:54]} 34. Bxd4+ {[%clk 0:01:31]}  cxd4 {[%clk 0:00:52]} 35. b4 {[%clk 0:01:32]}  a5 {[%clk 0:00:48]} 36. a3 {[%clk 0:01:12]}  axb4 {[%clk 0:00:45]} 37. axb4 {[%clk 0:01:13]}  Kf8 {[%clk 0:00:40]} 38. Kf2 {[%clk 0:01:13]}  f5 {[%clk 0:00:37]} 39. Bc6 {[%clk 0:01:06]}  Nf6 {[%clk 0:00:35]} 40. Ke2 {[%clk 0:01:01]}  Nh5 {[%clk 0:00:32]} 41. Kd3 {[%clk 0:00:57]}  Nxf4+ {[%clk 0:00:31]} 42. Kxd4 {[%clk 0:00:58]}  Ke7 {[%clk 0:00:30]} 43. c5 {[%clk 0:00:55]}  bxc5+ {[%clk 0:00:28]} 44. Kxc5 {[%clk 0:00:56]}  Nd3+ {[%clk 0:00:26]} 45. Kc4 {[%clk 0:00:53]}  Ne5+ {[%clk 0:00:24]} 46. Kd5 {[%clk 0:00:54]}  Nd3 {[%clk 0:00:21]} 47. b5 {[%clk 0:00:53]}  Nf4+ {[%clk 0:00:20]} 48. Ke5 {[%clk 0:00:49]}  Ne6 {[%clk 0:00:21]} 49. b6 {[%clk 0:00:45]}  Nc5 {[%clk 0:00:18]} 50. b7 {[%clk 0:00:45]}  Na6 {[%clk 0:00:18]} 51. h4 {[%clk 0:00:42]}  Nb8 {[%clk 0:00:19]} 52. Bb5 {[%clk 0:00:42]}  h6 {[%clk 0:00:18]} 53. g3 {[%clk 0:00:43]}  Kd8 {[%clk 0:00:15]} 54. Kf6 {[%clk 0:00:36]}  g5 {[%clk 0:00:15]} 55. h5 {[%clk 0:00:37]}  f4 {[%clk 0:00:14]} 56. gxf4 {[%clk 0:00:37]}  gxf4 {[%clk 0:00:13]} 57. Kg6 {[%clk 0:00:38]}  f3 {[%clk 0:00:12]} 58. Kxh6 {[%clk 0:00:37]}  f2 {[%clk 0:00:13]} 59. Kg7 {[%clk 0:00:35]} 1-0


[Site "https://www.chess.com"]

[Event "Titled Tuesday Blitz January 17 Early 2023"]
[White "Wagner, Dennis"]
[Black "Poeta, Caio Medeiros"]
[WhiteFideId "24650684"]
[BlackFideId "2142660"]
[WhiteElo "2595"]
[BlackElo "2088"]
[Result "1-0"]
[Round "05"]
[TimeControl "180+2"]
[Date "2023.01.17"]
[WhiteClock "0:00:03"]
[BlackClock "0:00:03"]

1. d4 {[%clk 0:03:00]}  Nf6 {[%clk 0:02:58]} 2. Nf3 {[%clk 0:03:00]}  e6 {[%clk 0:02:58]} 3. c4 {[%clk 0:03:00]}  b6 {[%clk 0:02:56]} 4. g3 {[%clk 0:02:59]}  Bb4+ {[%clk 0:02:57]} 5. Bd2 {[%clk 0:02:58]}  c5 {[%clk 0:02:57]} 6. Bxb4 {[%clk 0:02:54]}  cxb4 {[%clk 0:02:57]} 7. Bg2 {[%clk 0:02:54]}  Bb7 {[%clk 0:02:57]} 8. O-O {[%clk 0:02:54]}  O-O {[%clk 0:02:57]} 9. Qd3 {[%clk 0:02:54]}  d5 {[%clk 0:02:57]} 10. Nbd2 {[%clk 0:02:50]}  Nbd7 {[%clk 0:02:49]} 11. Rac1 {[%clk 0:02:42]}  Rc8 {[%clk 0:02:47]} 12. cxd5 {[%clk 0:02:31]}  Nxd5 {[%clk 0:02:34]} 13. e4 {[%clk 0:02:28]}  N5f6 {[%clk 0:02:30]} 14. Qe3 {[%clk 0:02:20]}  Qe7 {[%clk 0:02:18]} 15. Ne5 {[%clk 0:02:14]}  Nxe5 {[%clk 0:02:14]} 16. dxe5 {[%clk 0:02:14]}  Nd7 {[%clk 0:02:15]} 17. f4 {[%clk 0:02:07]}  Nc5 {[%clk 0:02:14]} 18. Rfd1 {[%clk 0:01:58]}  Rfd8 {[%clk 0:02:13]} 19. Nc4 {[%clk 0:01:56]}  h6 {[%clk 0:01:35]} 20. Nd6 {[%clk 0:01:53]}  Rb8 {[%clk 0:01:34]} 21. h4 {[%clk 0:01:49]}  a5 {[%clk 0:01:32]} 22. Kh2 {[%clk 0:01:45]}  Ba6 {[%clk 0:01:30]} 23. f5 {[%clk 0:01:15]}  Rd7 {[%clk 0:01:12]} 24. Bh3 {[%clk 0:00:32]}  Rbd8 {[%clk 0:01:07]} 25. Rc2 {[%clk 0:00:32]}  exf5 {[%clk 0:01:01]} 26. Nxf5 {[%clk 0:00:29]}  Qxe5 {[%clk 0:00:57]} 27. Nxh6+ {[%clk 0:00:22]}  gxh6 {[%clk 0:00:54]} 28. Bxd7 {[%clk 0:00:22]}  Rxd7 {[%clk 0:00:42]} 29. Rxd7 {[%clk 0:00:08]}  Nxd7 {[%clk 0:00:40]} 30. Qxh6 {[%clk 0:00:08]}  Nf6 {[%clk 0:00:27]} 31. Qg5+ {[%clk 0:00:03]}  Qxg5 {[%clk 0:00:26]} 32. hxg5 {[%clk 0:00:04]}  Nxe4 {[%clk 0:00:24]} 33. Rc6 {[%clk 0:00:05]}  Nxg5 {[%clk 0:00:09]} 34. Rxb6 {[%clk 0:00:05]}  Bc4 {[%clk 0:00:06]} 35. b3 {[%clk 0:00:04]}  Be6 {[%clk 0:00:04]} 36. Rb5 {[%clk 0:00:04]}  Nf3+ {[%clk 0:00:02]} 37. Kg2 {[%clk 0:00:04]}  Nd4 {[%clk 0:00:03]} 38. Rxa5 {[%clk 0:00:04]}  Nc2 {[%clk 0:00:02]} 39. Ra4 {[%clk 0:00:03]}  Kg7 {[%clk 0:00:02]} 40. Kf2 {[%clk 0:00:03]}  Kf6 {[%clk 0:00:02]} 41. Ke2 {[%clk 0:00:03]}  Ke5 {[%clk 0:00:03]} 42. Kd2 {[%clk 0:00:03]} 1-0


[Site "https://www.chess.com"]

[Event "Titled Tuesday Blitz January 17 Early 2023"]
[White "Gauri, Shankar"]
[Black "Batsiashvili, Nino"]
[WhiteFideId "5041350"]
[BlackFideId "13602993"]
[WhiteElo "2360"]
[BlackElo "2467"]
[Result "0-1"]
[Round "05"]
[TimeControl "180+2"]
[Date "2023.01.17"]
[WhiteClock "0:00:02"]
[BlackClock "0:01:02"]

1. Nf3 {[%clk 0:03:00]}  Nf6 {[%clk 0:02:55]} 2. g3 {[%clk 0:03:00]}  d5 {[%clk 0:02:50]} 3. Bg2 {[%clk 0:02:59]}  e6 {[%clk 0:02:45]} 4. O-O {[%clk 0:02:58]}  Be7 {[%clk 0:02:45]} 5. c4 {[%clk 0:02:57]}  O-O {[%clk 0:02:41]} 6. d4 {[%clk 0:02:55]}  c6 {[%clk 0:02:39]} 7. Qc2 {[%clk 0:02:53]}  b6 {[%clk 0:02:38]} 8. Nbd2 {[%clk 0:02:51]}  Bb7 {[%clk 0:02:33]} 9. e4 {[%clk 0:02:51]}  c5 {[%clk 0:02:33]} 10. cxd5 {[%clk 0:02:12]}  exd5 {[%clk 0:02:32]} 11. e5 {[%clk 0:02:12]}  Ne8 {[%clk 0:02:32]} 12. b3 {[%clk 0:01:56]}  Nc6 {[%clk 0:02:28]} 13. Bb2 {[%clk 0:01:56]}  Nc7 {[%clk 0:02:21]} 14. Rad1 {[%clk 0:01:49]}  Ba6 {[%clk 0:02:14]} 15. Rfe1 {[%clk 0:01:33]}  Nb4 {[%clk 0:02:14]} 16. Qb1 {[%clk 0:01:34]}  Bd3 {[%clk 0:02:10]} 17. Qa1 {[%clk 0:01:15]}  Nc2 {[%clk 0:02:10]} 18. Qc1 {[%clk 0:01:16]}  Nxe1 {[%clk 0:02:09]} 19. Nxe1 {[%clk 0:01:17]}  Be2 {[%clk 0:02:03]} 20. f4 {[%clk 0:01:01]}  Bxd1 {[%clk 0:01:44]} 21. Qxd1 {[%clk 0:01:02]}  Nb5 {[%clk 0:01:41]} 22. Nef3 {[%clk 0:00:34]}  Qd7 {[%clk 0:01:37]} 23. h4 {[%clk 0:00:26]}  cxd4 {[%clk 0:01:32]} 24. Kh2 {[%clk 0:00:24]}  Bc5 {[%clk 0:01:26]} 25. Bh3 {[%clk 0:00:22]}  Qe7 {[%clk 0:01:22]} 26. b4 {[%clk 0:00:20]}  Bxb4 {[%clk 0:01:21]} 27. Nxd4 {[%clk 0:00:21]}  Nxd4 {[%clk 0:01:19]} 28. Bxd4 {[%clk 0:00:21]}  Bc5 {[%clk 0:01:19]} 29. Ba1 {[%clk 0:00:16]}  Rfd8 {[%clk 0:01:18]} 30. f5 {[%clk 0:00:15]}  d4 {[%clk 0:01:13]} 31. Nf3 {[%clk 0:00:14]}  Rd5 {[%clk 0:01:11]} 32. Bg2 {[%clk 0:00:12]}  Re8 {[%clk 0:01:08]} 33. f6 {[%clk 0:00:11]}  gxf6 {[%clk 0:01:04]} 34. exf6 {[%clk 0:00:11]}  Qxf6 {[%clk 0:01:04]} 35. Ng5 {[%clk 0:00:08]}  Rxg5 {[%clk 0:01:03]} 36. hxg5 {[%clk 0:00:09]}  Qxg5 {[%clk 0:01:04]} 37. Qd3 {[%clk 0:00:06]}  Re3 {[%clk 0:01:03]} 38. Qb5 {[%clk 0:00:02]}  Qxg3+ {[%clk 0:01:02]} 0-1


[Site "https://www.chess.com"]

[Event "Titled Tuesday Blitz January 17 Early 2023"]
[White "Vasques, Antonio Pedro Freixial"]
[Black "Belozerov, Andrei"]
[WhiteFideId "1908332"]
[BlackFideId "4120213"]
[WhiteElo "2214"]
[BlackElo "2461"]
[Result "0-1"]
[Round "05"]
[TimeControl "180+2"]
[Date "2023.01.17"]
[WhiteClock "0:00:02"]
[BlackClock "0:01:47"]

1. e4 {[%clk 0:03:00]}  c5 {[%clk 0:02:57]} 2. Nc3 {[%clk 0:02:58]}  Nc6 {[%clk 0:02:56]} 3. Bb5 {[%clk 0:02:53]}  Nd4 {[%clk 0:02:55]} 4. Nf3 {[%clk 0:02:53]}  e6 {[%clk 0:02:55]} 5. Nxd4 {[%clk 0:02:43]}  cxd4 {[%clk 0:02:54]} 6. Ne2 {[%clk 0:02:44]}  Qg5 {[%clk 0:02:54]} 7. Nxd4 {[%clk 0:02:30]}  Qc5 {[%clk 0:02:48]} 8. c3 {[%clk 0:02:26]}  e5 {[%clk 0:02:48]} 9. b4 {[%clk 0:00:13]}  Qb6 {[%clk 0:02:45]} 10. Bd3 {[%clk 0:00:14]}  exd4 {[%clk 0:02:45]} 11. O-O {[%clk 0:00:15]}  Ne7 {[%clk 0:02:23]} 12. Qf3 {[%clk 0:00:07]}  Ng6 {[%clk 0:02:20]} 13. Qf5 {[%clk 0:00:07]}  d6 {[%clk 0:02:07]} 14. Bb5+ {[%clk 0:00:06]}  Kd8 {[%clk 0:02:07]} 15. Qg5+ {[%clk 0:00:04]}  Be7 {[%clk 0:02:06]} 16. Qd5 {[%clk 0:00:03]}  Be6 {[%clk 0:02:05]} 17. Qxd4 {[%clk 0:00:04]}  Qxb5 {[%clk 0:02:04]} 18. Qxg7 {[%clk 0:00:04]}  Qe5 {[%clk 0:02:00]} 19. Qh6 {[%clk 0:00:04]}  Qxe4 {[%clk 0:01:59]} 20. d4 {[%clk 0:00:04]}  Qh4 {[%clk 0:01:55]} 21. Qe3 {[%clk 0:00:02]}  Rg8 {[%clk 0:01:50]} 22. Re1 {[%clk 0:00:02]}  Bd5 {[%clk 0:01:49]} 23. g3 {[%clk 0:00:03]}  Qh3 {[%clk 0:01:48]} 24. Bb2 {[%clk 0:00:02]}  Qg2# {[%clk 0:01:47]} 0-1


[Site "https://www.chess.com"]

[Event "Titled Tuesday Blitz January 17 Early 2023"]
[White "Bacrot, Etienne"]
[Black "Iljin, Timofey"]
[WhiteFideId "605506"]
[BlackFideId "14110180"]
[WhiteElo "2667"]
[BlackElo "2329"]
[Result "1-0"]
[Round "05"]
[TimeControl "180+2"]
[Date "2023.01.17"]
[WhiteClock "0:01:49"]
[BlackClock "0:00:05"]

1. e4 {[%clk 0:03:00]}  e5 {[%clk 0:02:55]} 2. Nf3 {[%clk 0:03:01]}  Nc6 {[%clk 0:02:53]} 3. Bb5 {[%clk 0:03:00]}  a6 {[%clk 0:02:50]} 4. Ba4 {[%clk 0:03:00]}  Nf6 {[%clk 0:02:50]} 5. d3 {[%clk 0:03:00]}  b5 {[%clk 0:02:51]} 6. Bb3 {[%clk 0:03:00]}  Bc5 {[%clk 0:02:51]} 7. Nc3 {[%clk 0:02:57]}  d6 {[%clk 0:02:52]} 8. a3 {[%clk 0:02:42]}  h6 {[%clk 0:02:51]} 9. h3 {[%clk 0:02:40]}  O-O {[%clk 0:02:51]} 10. g4 {[%clk 0:02:40]}  Nxg4 {[%clk 0:02:09]} 11. hxg4 {[%clk 0:02:36]}  Bxg4 {[%clk 0:02:10]} 12. Rg1 {[%clk 0:02:34]}  Qd7 {[%clk 0:01:38]} 13. Bxh6 {[%clk 0:02:22]}  gxh6 {[%clk 0:01:21]} 14. Nh2 {[%clk 0:02:20]}  h5 {[%clk 0:00:28]} 15. Nxg4 {[%clk 0:02:20]}  hxg4 {[%clk 0:00:28]} 16. Rxg4+ {[%clk 0:02:20]}  Kh8 {[%clk 0:00:23]} 17. Kd2 {[%clk 0:02:13]}  f5 {[%clk 0:00:04]} 18. Qh1+ {[%clk 0:01:56]}  Qh7 {[%clk 0:00:04]} 19. Qxh7+ {[%clk 0:01:53]}  Kxh7 {[%clk 0:00:05]} 20. Rh1# {[%clk 0:01:49]} 1-0


[Site "https://www.chess.com"]

[Event "Titled Tuesday Blitz January 17 Early 2023"]
[White "Harsha Bharathakoti"]
[Black "Vivas Zamora, Fabian Ernesto"]
[WhiteFideId "5078776"]
[BlackFideId "3902480"]
[WhiteElo "2602"]
[BlackElo "2346"]
[Result "0-1"]
[Round "05"]
[TimeControl "180+2"]
[Date "2023.01.17"]
[WhiteClock "0:00:01"]
[BlackClock "0:00:11"]

1. e4 {[%clk 0:03:00]}  e5 {[%clk 0:02:57]} 2. Nf3 {[%clk 0:03:00]}  Nc6 {[%clk 0:02:56]} 3. Bb5 {[%clk 0:03:01]}  f5 {[%clk 0:02:54]} 4. d3 {[%clk 0:03:00]}  fxe4 {[%clk 0:02:54]} 5. dxe4 {[%clk 0:03:01]}  Nf6 {[%clk 0:02:55]} 6. O-O {[%clk 0:03:00]}  Bc5 {[%clk 0:02:53]} 7. Bc4 {[%clk 0:02:58]}  d6 {[%clk 0:02:41]} 8. Nc3 {[%clk 0:02:44]}  Bg4 {[%clk 0:02:32]} 9. h3 {[%clk 0:02:44]}  Bh5 {[%clk 0:02:31]} 10. g4 {[%clk 0:02:44]}  Bg6 {[%clk 0:01:55]} 11. Nh4 {[%clk 0:02:15]}  Qd7 {[%clk 0:01:25]} 12. Bg5 {[%clk 0:01:45]}  O-O-O {[%clk 0:00:39]} 13. Nd5 {[%clk 0:01:45]}  Nxe4 {[%clk 0:00:12]} 14. Bxd8 {[%clk 0:01:44]}  Qxd8 {[%clk 0:00:09]} 15. Nf5 {[%clk 0:00:29]}  Bxf5 {[%clk 0:00:09]} 16. gxf5 {[%clk 0:00:30]}  Qg5+ {[%clk 0:00:09]} 17. Qg4 {[%clk 0:00:31]}  Qxg4+ {[%clk 0:00:06]} 18. hxg4 {[%clk 0:00:31]}  Nd2 {[%clk 0:00:07]} 19. Bd3 {[%clk 0:00:21]}  Nxf1 {[%clk 0:00:07]} 20. Rxf1 {[%clk 0:00:22]}  Nd4 {[%clk 0:00:07]} 21. c3 {[%clk 0:00:18]}  Nf3+ {[%clk 0:00:07]} 22. Kg2 {[%clk 0:00:19]}  Ng5 {[%clk 0:00:08]} 23. f4 {[%clk 0:00:06]}  exf4 {[%clk 0:00:09]} 24. Nxf4 {[%clk 0:00:07]}  Re8 {[%clk 0:00:09]} 25. Ne6 {[%clk 0:00:06]}  Nxe6 {[%clk 0:00:09]} 26. fxe6 {[%clk 0:00:07]}  g6 {[%clk 0:00:09]} 27. Rf7 {[%clk 0:00:06]}  Rxe6 {[%clk 0:00:09]} 28. Rxh7 {[%clk 0:00:06]}  b6 {[%clk 0:00:09]} 29. Bb5 {[%clk 0:00:04]}  Kb7 {[%clk 0:00:08]} 30. Bc4 {[%clk 0:00:04]}  Re5 {[%clk 0:00:08]} 31. Kf3 {[%clk 0:00:03]}  Kc6 {[%clk 0:00:08]} 32. Rg7 {[%clk 0:00:02]}  g5 {[%clk 0:00:08]} 33. Kg2 {[%clk 0:00:02]}  b5 {[%clk 0:00:08]} 34. Bd3 {[%clk 0:00:03]}  a5 {[%clk 0:00:08]} 35. a3 {[%clk 0:00:02]}  Re3 {[%clk 0:00:08]} 36. Bf5 {[%clk 0:00:02]}  Re2+ {[%clk 0:00:08]} 37. Kf3 {[%clk 0:00:03]}  Rf2+ {[%clk 0:00:08]} 38. Kg3 {[%clk 0:00:03]}  Rxb2 {[%clk 0:00:08]} 39. Be4+ {[%clk 0:00:03]}  d5 {[%clk 0:00:08]} 40. Rxg5 {[%clk 0:00:04]}  Bd6+ {[%clk 0:00:08]} 41. Kf3 {[%clk 0:00:03]}  dxe4+ {[%clk 0:00:09]} 42. Kxe4 {[%clk 0:00:04]}  Rb3 {[%clk 0:00:10]} 43. Kd4 {[%clk 0:00:03]}  Rxa3 {[%clk 0:00:10]} 44. Rh5 {[%clk 0:00:01]}  Ra4+ {[%clk 0:00:10]} 45. Kd3 {[%clk 0:00:01]}  Rxg4 {[%clk 0:00:11]} 46. Rh6 {[%clk 0:00:01]}  Rg3+ {[%clk 0:00:12]} 47. Kd2 {[%clk 0:00:01]}  Kc5 {[%clk 0:00:12]} 48. Kc2 {[%clk 0:00:01]}  Rg2+ {[%clk 0:00:11]} 49. Kd3 {[%clk 0:00:01]}  Rg3+ {[%clk 0:00:11]} 50. Kc2 {[%clk 0:00:01]}  Bf4 {[%clk 0:00:11]} 51. Rh5+ {[%clk 0:00:01]}  Kc6 {[%clk 0:00:11]} 52. Rf5 {[%clk 0:00:01]}  Bd6 {[%clk 0:00:11]} 53. Kb3 {[%clk 0:00:01]}  b4 {[%clk 0:00:11]} 54. Ka4 {[%clk 0:00:02]}  Rxc3 {[%clk 0:00:11]} 55. Rg5 {[%clk 0:00:01]}  Ra3# {[%clk 0:00:11]} 0-1


[Site "https://www.chess.com"]